Cogmind - Beta 9.4 @@@ ROGUE MODE // 2020.02.28 @ 18:54:30 // Winter2019/RPGLIKE Player: Wizzeh Result: Destroyed by G-34 Mercenary with Small Laser Performance ------------- Evolutions (1) 500 Regions Visited (3) 600 Robots Destroyed (3) 15 Value Destroyed (30) 30 Prototype IDs (1) 20 Alien Tech Used (0) 0 Bonus (0) 0 TOTAL SCORE: 1165 Bonus ------- None Cogmind --------- Core Integrity 0/1100 Matter 300/300 Energy 250/250 System Corruption 1% Temperature Cool (6) Movement Walking (120) Location -9/Materials Parts ------- > --- POWER (1) -------- Ion Engine > --- PROPULSION (5) --- Improved Aluminum Leg Improved Aluminum Leg Improved Aluminum Leg Improved Aluminum Leg Improved Aluminum Leg > --- UTILITY (1) ------ (None) > --- WEAPON (1) ------- Rocket Launcher > --- INVENTORY (0) ---- (None) Peak State ------------ > --- POWER ------------ Ion Engine > --- PROPULSION ------- Improved Aluminum Leg Improved Aluminum Leg Improved Aluminum Leg Improved Aluminum Leg Improved Aluminum Leg > --- UTILITY ---------- Experimental Sensor Array > --- WEAPON ----------- Rocket Launcher > --- INVENTORY -------- (None) [Rating: 19] Favorites ----------- Power Ion Engine Engine Ion Engine Propulsion Aluminum Leg Leg Aluminum Leg Utility Experimental Sensor Array Device Experimental Sensor Array Protection Hardened Light Armor Plating Weapon Rocket Launcher Energy Gun Medium Laser Launcher Rocket Launcher Build | -11 -10 -10 -9 ------- Run | Scr Mat Min Mat Slots Evolved 4 | 1 . . 3 Power . | . . . . Propulsion 4 | 1 . . 3 Utility . | . . . . Weapon . | . . . . Parts Attached 14 | 4 1 2 7 Power 1 | 1 . . . Engine 1 | 1 . . . Core . | . . . . Reactor . | . . . . Propulsion 9 | 2 . . 7 Treads . | . . . . Leg 9 | 2 . . 7 Wheel . | . . . . Hover . | . . . . Flight . | . . . . Utility 2 | . 1 1 . Device 1 | . . 1 . Storage . | . . . . Processor . | . . . . Hackware . | . . . . Protection 1 | . 1 . . Artifact . | . . . . Weapon 2 | 1 . 1 . Energy Gun 1 | 1 . . . Energy Cannon . | . . . . Ballistic Gun . | . . . . Ballistic Cannon . | . . . . Launcher 1 | . . 1 . Special Weapon . | . . . . Impact Weapon . | . . . . Slashing Weapon . | . . . . Piercing Weapon . | . . . . Special Melee Weapon . | . . . . Unidentified Prototypes 1 | . . 1 . Parts Lost 1 | . . . 1 Power . | . . . . Propulsion . | . . . . Utility 1 | . . . 1 Weapon . | . . . . Highest Loss Streak 1 | . . . 1 Average Slot Usage (%) 99 | . 97 99 98 Engine 18 | . 20 20 15 Leg 44 | . 40 40 52 Device 10 | . . 11 14 Protection 7 | . 17 8 . Energy Gun 6 | . 20 6 . Launcher 11 | . . 13 15 Naked Turns . | . . . . Heaviest Build 14 | 7 12 14 10 Greatest Support 65 | 20 20 20 65 Greatest Overweight (x) . | . . . . Average Overweight (x) . | . . . . Largest Inventory Capacity . | . . . . Average Capacity . | . . . . Most Carried . | . . . . Average Carried . | . . . . Final Capacity . | . . . . Final Carried . | . . . . Class Distribution -------------------- 100% | Mutant Dominant Class ---------------- Mutant | -10/Materials Mutant | -10/Mines Mutant | -9/Materials Resources | -11 -10 -10 -9 ----------- Run | Scr Mat Min Mat Matter Collected 250 | 122 128 . . Remotely . | . . . . Salvage Created 56 | . . . 56 Parts 7 | . . 2 5 Haulers Intercepted . | . . . . Recyclers Shooed . | . . . . Parts Field Recycled . | . . . . Retrieved Matter . | . . . . Parts Self-Destructed . | . . . . Prevented . | . . . . Kills | -11 -10 -10 -9 ------- Run | Scr Mat Min Mat Combat Hostiles Destroyed 3 | . . 1 2 Melee 3 | . . 1 2 Classes Destroyed 1 | . . 1 . Swarmer 3 | . . 1 2 Best Kill Streak 2 | . . 1 2 Combat Bots Only 2 | . . 1 2 Max Kills in Single Turn 1 | . . 1 1 Gunslinging . | . . . . Exploded . | . . . . Melee 1 | . . 1 1 Uniques/NPCs Destroyed . | . . . . Combat | -11 -10 -10 -9 -------- Run | Scr Mat Min Mat Damage Taken 1505 | . . 441 1064 Core 1190 | . . 358 832 Absorbed by Shields . | . . . . Redirected to Core 901 | . . 216 685 Core Remaining (%) 77 | 100 . 54 . Volleys Fired . | . . . . Largest . | . . . . Hottest . | . . . . Shots Fired . | . . . . Gun . | . . . . Cannon . | . . . . Launcher . | . . . . Special . | . . . . Kinetic . | . . . . Thermal . | . . . . Explosive . | . . . . Electromagnetic . | . . . . Robot Hit Streak . | . . . . Robot Miss Streak . | . . . . Penetration Max . | . . . . Secondary Targets . | . . . . Shots Hit Robots . | . . . . Core Hits 17 | . . 5 12 Critical Hits . | . . . . Critical Kills . | . . . . Critical Parts Destroyed . | . . . . Melee Attacks . | . . . . Impact . | . . . . Slashing . | . . . . Piercing . | . . . . Sneak Attacks . | . . . . Combat Hostiles . | . . . . Follow-up Attacks . | . . . . Damage Inflicted 284 | . . 92 192 Guns . | . . . . Cannons . | . . . . Explosions . | . . . . Melee . | . . . . Ramming 284 | . . 92 192 Kinetic . | . . . . Thermal . | . . . . Explosive . | . . . . Electromagnetic . | . . . . Impact . | . . . . Slashing . | . . . . Piercing . | . . . . Highest Corruption 1 | . . . 1 Average Corruption 1 | . . . 1 Corruption Purged . | . . . . Overload Shots . | . . . . Overflow Damage . | . . . . Projectiles . | . . . . Explosions . | . . . . Melee . | . . . . Knockbacks 2 | . . . 2 Impact 2 | . . . 2 Kinetic . | . . . . Secondary . | . . . . Self-Inflicted Damage 21 | . . 21 . Shots . | . . . . Rammed 28 | . . 28 . Targets Rammed 132 | . . 45 87 Kicked 104 | . . 17 87 Crushed . | . . . . Highest Temperature . | . . . . Average Temperature . | . . . . Received Heat Transfer 144 | . . . 144 Siege Activations . | . . . . Robots Corrupted . | . . . . Combat Hostiles . | . . . . Parts Fried . | . . . . Impact Corruptions . | . . . . Robots Melted . | . . . . Combat Hostiles . | . . . . Parts Melted . | . . . . Heat Transferred . | . . . . Parts Sabotaged . | . . . . Parts Stolen . | . . . . Parts Stripped . | . . . . Power Chain Reactions . | . . . . Missiles Intercepted . | . . . . Alert | -11 -10 -10 -9 ------- Run | Scr Mat Min Mat Peak Influence 70 | . . 20 70 Average Influence 11 | . . . 35 Maximum Alert Level . | . . . . Low Security (%) 100 | 100 100 100 100 Level 1 . | . . . . Level 2 . | . . . . Level 3 . | . . . . Level 4 . | . . . . Level 5 . | . . . . High Security . | . . . . Max Security . | . . . . Squads Dispatched 2 | . 1 . 1 Investigation . | . . . . Extermination . | . . . . Reinforcement 2 | . 1 . 1 Assault . | . . . . Garrison . | . . . . Intercept . | . . . . Construction Impeded . | . . . . Haulers Reinforced . | . . . . Stealth | -11 -10 -10 -9 --------- Run | Scr Mat Min Mat Distress Signals 1 | . . . 1 Communications Jammed . | . . . . Distress Signals . | . . . . Times Spotted 19 | . . 8 11 Peak Tracking Total 7 | . 2 3 7 Tactical Retreats 1 | . . 1 . Traps | -11 -10 -10 -9 ------- Run | Scr Mat Min Mat Traps Triggered . | . . . . Indirectly . | . . . . Trap Hack Attempts . | . . . . Triggered . | . . . . Disarmed . | . . . . Reprogrammed . | . . . . Reused . | . . . . Traps Extracted . | . . . . Installed . | . . . . Triggered . | . . . . Machines | -11 -10 -10 -9 ---------- Run | Scr Mat Min Mat Machines Disabled . | . . . . Max in Single Turn . | . . . . Machines Sabotaged . | . . . . Garrisons Compromised . | . . . . Overloaded Fab Kills . | . . . . Fab Network Shutdowns . | . . . . Hacking | -11 -10 -10 -9 --------- Run | Scr Mat Min Mat Machines Accessed . | . . . . Terminals . | . . . . Fabricators . | . . . . Repair Stations . | . . . . Recycling Units . | . . . . Scanalyzers . | . . . . Garrison Access . | . . . . Total Hacks . | . . . . Successful . | . . . . Failed . | . . . . Catastrophic . | . . . . Database Lockouts . | . . . . Manual . | . . . . Terminals . | . . . . Fabricators . | . . . . Repair Stations . | . . . . Recycling Units . | . . . . Scanalyzers . | . . . . Garrison Access . | . . . . Terminal Hacks . | . . . . Fabricator Hacks . | . . . . Repair Station Hacks . | . . . . Recycling Unit Hacks . | . . . . Scanalyzer . | . . . . Garrison Access Hacks . | . . . . Unauthorized Hacks . | . . . . Terminals . | . . . . Fabricators . | . . . . Repair Stations . | . . . . Recycling Units . | . . . . Scanalyzers . | . . . . Garrison Access . | . . . . Data Cores Recovered . | . . . . Used . | . . . . Hacking Detections . | . . . . Full Trace Events . | . . . . Feedback Events . | . . . . Feedback Blocked . | . . . . Robot Schematics Acquired . | . . . . Robots Built . | . . . . Matter . | . . . . Time . | . . . . Total Robot Build Rating . | . . . . Part Schematics Acquired . | . . . . Parts Built . | . . . . Matter . | . . . . Time . | . . . . Total Part Build Rating . | . . . . Parts Repaired . | . . . . Time . | . . . . Parts Recycled . | . . . . Recycled Matter . | . . . . Retrieved Matter . | . . . . Retrieved Components . | . . . . Parts Scanalyzed . | . . . . Part Schematics Acquired . | . . . . Parts Damaged . | . . . . Bothacking | -11 -10 -10 -9 ------------ Run | Scr Mat Min Mat Used RIF Installer . | . . . . Robots Hacked . | . . . . Non-combat . | . . . . Combat . | . . . . Robot Hacks Applied . | . . . . Relay Couplers Released . | . . . . Robots Rewired . | . . . . Allies Hacked . | . . . . Hacks Repelled . | . . . . Allies | -11 -10 -10 -9 -------- Run | Scr Mat Min Mat Total Allies . | . . . . Largest Group . | . . . . Highest-Rated Group . | . . . . Highest-Rated Ally . | . . . . Total Orders . | . . . . Ally Attacks . | . . . . Total Damage . | . . . . Kills . | . . . . Allies Corrupted . | . . . . Allies Melted . | . . . . Intel | -11 -10 -10 -9 ------- Run | Scr Mat Min Mat Robot Analysis Total . | . . . . Derelict Logs Recovered . | . . . . Drone Launches . | . . . . Drone Recoveries . | . . . . Exploration | -11 -10 -10 -9 ------------- Run | Scr Mat Min Mat Turns Passed 1031 | 48 158 501 324 Spaces Moved 697 | 40 131 366 160 Core 7 | 7 . . . Treads . | . . . . Legs 690 | 33 131 366 160 Wheels . | . . . . Hover . | . . . . Flight . | . . . . Fastest Speed 50 | 50 120 120 120 Average Speed 119 | 107 120 120 120 Slowest Speed 120 | 120 120 120 120 Overloaded Moves . | . . . . Propulsion Burnouts . | . . . . Robots Hopped . | . . . . Cave-ins Triggered . | . . . . Exploration Rate (%) 28 | 4 25 64 19 Regions Visited 3 Branch Regions 1 Pre-discovered Areas . | . . . . Known Exits Taken . | . . . . Unknown Exits Taken 3 | 1 1 1 . Scrap Searched . | . . . . Spaces Dug . | . . . . Terrain Destroyed . | . . . . Melee . | . . . . Projectile . | . . . . AOE . | . . . . Actions | -11 -10 -10 -9 --------- Run | Scr Mat Min Mat Total 867 | 43 131 419 274 Wait 16 | . . . 16 Move 694 | 39 130 365 160 Hop . | . . . . Pick Up . | . . . . Fast Attach 12 | 4 1 2 5 Attach . | . . . . Detach . | . . . . Swap 2 | . . . 2 Drop 6 | . . 2 4 Fire . | . . . . Melee . | . . . . Ram . | . . . . Kick 132 | . . 45 87 Crush . | . . . . Escape Stasis . | . . . . Rewire . | . . . . Trap . | . . . . Miscellaneous 5 | . . 5 . Route ------- -11/Scrapyard -10/Materials -10/Mines -9/Materials History --------- Turn | Location | Event 3 | -11/Scrapyard | Discovered new exit (range 16) 8 | -11/Scrapyard | Upgraded with Propulsion slot (x1) 49 | -11/Scrapyard | Entered Materials 188 | -10/Materials | Discovered new exit (range 15) 207 | -10/Materials | Entered Mines 316 | -10/Mines | Build established: Mutant 364 | -10/Mines | Received a Rocket Launcher from a helpful Derelict 387 | -10/Mines | Found a hidden stash of uninstalled traps 418 | -10/Mines | Found a damaged Exp. Sensor Array with a note attached 426 | -10/Mines | Found Prototype Device 426 | -10/Mines | Identified Exp. Sensor Array 483 | -10/Mines | Discovered new exit (range 11) 708 | -10/Mines | Entered Materials 710 | -9/Materials | Reached level 2 833 | -9/Materials | Upgraded with Propulsion slot (x3) 871 | -9/Materials | Core integrity fell below 50% 894 | -9/Materials | Core integrity fell below 20% 1032 | -9/Materials | Destroyed by G-34 Mercenary with Small Laser Last Messages --------------- 00899_ Kicked S-10 Pest out of the way. 00901_ R-06 Scavenger collects Aluminum Leg. 00902_ Kicked S-10 Pest out of the way. 00904_ R-06 Scavenger collects Aluminum Leg. 00904_ Kicked S-10 Pest out of the way. 00904_ S-10 Pest destroyed. 00905_ Kicked S-10 Pest out of the way. 00908_ R-06 Scavenger collects Flight Unit. 00909_ Kicked S-10 Pest out of the way. 00915_ S-10 Pest destroyed. 00920_ Kicked S-10 Pest out of the way. 00950_ Neutrino Reactor explodes. 00950_ S-10 Pest destroyed. 01003_ Kicked G-34 Mercenary out of the way. 01008_ G-34 Mercenary knocked back. 01010_ Kicked G-34 Mercenary out of the way. 01011_ G-34 Mercenary knocked back. 01012_ Kicked G-34 Mercenary out of the way. 01023_ Exp. Sensor Array destroyed. 01023_ Kicked G-34 Mercenary out of the way. Map ----- +----------------------------------------------------+ | ???????????????????????????????????????????????? | | #?????#######+#######???????????????????????????? | | #?????# ???????????????????????????? | | #?????# ?????????????????????????????? | | #?????# """ """ ""???????????????????? ????????? | | ####### "R """ ""???????????????????? #??????? | | + """ """ """ #??#########+#??? #??????? | | ####### #??# #??? #??????? | | #?????################??# #??? #??????? | | #?????????# #??????? #??? #??????? | | #?????????# #??????? #??? #??????? | | #?????????#! """ ########? %#??? #??????? | | #?????????# """ #[[!!]]#? ????# #??????? | | #?????????# """ #[[!!]]#?? ?????# #??????? | | +########???? # #?? ??????# ####???? | | #######+### ####+######### ##T##### | | # | | """ # | | """ # | | """ + # ### ############## """ """ | | """ # #% %## #???????????# """ """ | | # #% %## #########?????# """^ """ | | # ##%%%%####??# ####### | | ###########?????# | | #########???????????????# gT | | ????????????????????????#@% = | | ????????????????????????# %%% ##########"######### | | ????????????????????#######g######## %% % #??? | | ????????????????????# %%% %%%% ## *=% #??? | | ????????????????????# %%%%%%%%## =[%#??? | | ????????????????????# %% % ## =% =* #??? | | ????????????????????# """"" """"" ## *%[ =%=%%#??? | | ????????????????????# """"" """"" ##=%% % [%#??? | | ????????????????????# """"" """"" ## =%%%% %% #??? | | ????????????????????###########################??? | | | | | | | | | | | | | | | | | | | | | | | | | | | | | | | +----------------------------------------------------+ Best States ------------- Heat Dissipation 25 Energy Generation 10 Energy Capacity 250 Matter Stores 300 Matter Capacity 300 Sight Range 16 Robot Scan Range 30 Terrain Scan Density 10 Armor Coverage 150 Evasion (%) 40 Item Schematics ----------------- None Robot Schematics ------------------ None Fabricated ------------ Nothing Alien Tech Used ----------------- None Achievements -------------- None Challenges ------------ None RPGLIKE | -11 -10 -10 -9 --------- Run | Scr Mat Min Mat Levels Raised 1 | . . . 1 XP Earned 5300 | 3000 . 600 1700 XP Spent 4500 | 500 . . 4000 Upgrades 14 | 1 . . 13 Propulsion Slot 4 | 1 . . 3 Core Integrity 10 | . . . 10 Protomatter Created 12 | . . 12 . Integrity Restored 87 | . . 87 . Core 87 | . . 87 . Protomatter Decayed . | . . . . Game ------ Seed TerrainParticleClaw Manual? 0 Play Time 00:15:37 Cumulative 1.1 hours Start 2020.02.28 @ 18:40:35 End 2020.02.28 @ 18:54:30 Sessions 1 Manual Loads 0 Difficulty Rogue Special Mode Winter2019/RPGLIKE Game No. 9 Rogue 9 Adventurer 0 Explorer 0 Win Type - Total 0 Types 0/0/0/0/0/0/0 Lore% 5 Gallery% 9 Achievement% 11 Wizard Run 0 Options --------- ASCII 0 Keyboard 0 Movement Mouse Keybinds 0 Fullscreen 0 Font 28/Smallcaps Map View 76x50 Tactical HUD 1 Map Filters NONE Filters NONE Steam 1 RUN: b0e1183e-d229-4b29-bec4-89b79394e8ed